fUSD/lending_fUSD_20260123
["ID","MTS","AMOUNT","RATE_DAILY","PERIOD"]
[403116134,1769172710242,10000.01,0.00014439,2]
[403116135,1769172710268,10000.01,0.00014439,2]
[403116138,1769172800134,1173.0,0.00014438,2]
[403116140,1769172843076,150.0,0.00014438,2]
[403116141,1769172844080,300.0,0.00014438,2]
[403116142,1769172901242,300.0,0.00014438,2]
[403116143,1769172901472,1200.0,0.00014438,2]
[403116144,1769172901510,300.0,0.00014438,2]
[403116147,1769172986811,500.0,0.00014339,2]
[403116148,1769173022047,150.0,0.00014438,2]
[403116151,1769173124695,1022.46070641,0.00014345,2]
[403116153,1769173156476,6077.54929359,0.00014,2]
[403116154,1769173156582,10000.01,0.00014,2]
[403116155,1769173156606,10000.01,0.00014,2]
[403116156,1769173156630,3922.43070641,0.00014,2]
[403116164,1769173201242,1200.0,0.00014438,2]
[403116165,1769173201277,300.0,0.00014438,2]
[403116167,1769173202028,150.0,0.00014438,2]
[403116172,1769173239207,156.72528375,0.00014339,2]
[403116234,1769173293401,973.829,0.0001415,2]
[403116236,1769173326707,55313.373342,0.00018,30]
[403116237,1769173328525,151.0,0.00014439,2]
[403116238,1769173329120,151.0,0.00014439,2]
[403116239,1769173329730,151.0,0.00014439,2]
[403116240,1769173330326,151.0,0.00014439,2]
[403116241,1769173330923,151.0,0.00014439,2]
[403116242,1769173331532,151.0,0.00014439,2]
[403116243,1769173332082,151.0,0.00014439,2]
[403116244,1769173332157,151.0,0.00014439,2]
[403116245,1769173332782,151.0,0.00014439,2]
[403116246,1769173333009,151.0,0.00014439,2]
[403116247,1769173333377,151.0,0.00014439,2]
[403116248,1769173333627,151.0,0.00014439,2]
[403116249,1769173333976,151.0,0.00014439,2]
[403116250,1769173334212,151.0,0.00014439,2]
[403116251,1769173334572,151.0,0.00014439,2]
[403116252,1769173334817,151.0,0.00014439,2]
[403116253,1769173335417,197.97676802,0.00014439,2]
[403116254,1769173342657,200.0,0.00014439,2]
[403116255,1769173345393,483.04824182,0.00014439,2]
[403116256,1769173345417,16.95175818,0.00014439,2]
[403116257,1769173354396,-4694.17499756,0.00014439,2]
[403116258,1769173354566,-10000.01,0.00014439,2]
[403116259,1769173354761,-10000.01,0.00014439,2]
[403116260,1769173354935,-10000.01,0.00014439,2]
[403116261,1769173355064,-10000.01,0.00014439,2]
[403116262,1769173355187,-10000.01,0.00014439,2]
[403116277,1769173501403,1200.0,0.00014438,2]
[403116278,1769173510853,920.21463576,0.00014339,2]
[403116280,1769173550308,151.0,0.000132,5]
[403116281,1769173569904,173.74,0.00012972,2]
[403116283,1769173658184,400.0,0.000139,5]
[403116284,1769173677070,172.0,6.2e-07,2]
[403116285,1769173711323,156.72528371,0.00014339,2]
[403116286,1769173741842,7377.33008053,0.00014339,2]
[403116287,1769173742114,10000.01,0.00014339,2]
[403116288,1769173742142,10000.01,0.00014339,2]
[403116289,1769173742168,10000.01,0.00014339,2]
[403116290,1769173742194,10000.01,0.00014339,2]
[403116291,1769173742222,10000.01,0.00014339,2]
[403116292,1769173742249,10000.01,0.00014339,2]
[403116293,1769173742273,10000.01,0.00014339,2]
[403116294,1769173742298,10000.01,0.00014339,2]
[403116295,1769173742322,10000.01,0.00014339,2]
[403116297,1769173801567,1200.0,0.00014338,2]
[403116301,1769173832170,-485.01153519,0.00014339,2]
[403116302,1769173832182,-5902.43509194,0.00014339,2]
[403116303,1769173832193,-1011.42361408,0.00014339,2]
[403116304,1769173832280,-546.51182598,0.00014339,2]
[403116305,1769173832291,-1597.20025249,0.00014339,2]
[403116306,1769173832302,-3767.42126143,0.00014339,2]
[403116307,1769173832410,-2637.88237455,0.00014339,2]
[403116308,1769173832420,-324.27327818,0.00014339,2]
[403116309,1769173832431,-253.75974854,0.00014339,2]
[403116310,1769173832443,-2878.69273974,0.00014339,2]
[403116313,1769173832470,-293.2669,0.00014339,2]
[403116328,1769173833553,605.8331522,0.00014338,2]
[403116329,1769173833625,180.79120478,0.00014338,2]
[403116332,1769173838308,-861.2,0.00014339,2]
[403116333,1769173838320,-457.04152083,0.00014339,2]
[403116334,1769173838360,-918.78,0.00014339,2]
[403116335,1769173838372,-49534.50000005,0.00014339,2]
[403116336,1769173840268,-4435.886,0.00014339,2]
[403116337,1769173840279,-1470.41156001,0.00014339,2]
[403116338,1769173840290,-356.8678443,0.00014339,2]
[403116339,1769173840301,-1835.07815842,0.00014339,2]
[403116340,1769173840312,-372.91790446,0.00014339,2]
[403116341,1769173840386,-1256.38003316,0.00014339,2]
[403116342,1769173840490,-505.60542929,0.00014339,2]
[403116343,1769173840553,-4574.1801,0.00014339,2]
[403116344,1769173840574,-3424.26291047,0.00014339,2]
[403116345,1769173840587,-539.63574858,0.00014339,2]
[403116346,1769173840731,-28980.0,0.00014339,2]
[403116359,1769173843326,-40.11631681,0.00014339,2]
[403116360,1769173843495,-935.09213078,0.00014339,2]
[403116361,1769173843532,-689691.39984019,0.00014339,2]
[403116362,1769173843542,-500.0,0.00014438,2]
[403116363,1769173843551,-622.31564229,0.00014439,2]
[403116364,1769173843562,-151.0,0.00014439,2]
[403116365,1769173843571,-156.72528371,0.00015229,2]
[403116366,1769173843581,-431.0,0.00015771,2]
[403116367,1769173843591,-600.0,0.00015882,2]
[403116368,1769173843601,-9999.99,0.00016116,2]
[403116369,1769173843611,-13992.19,0.00016116,2]
[403116370,1769173843621,-150.99,0.00016116,2]
[403116371,1769173843631,-4361.12,0.00016116,2]
[403116372,1769173843640,-9999.99,0.00016116,2]
[403116373,1769173843651,-156.72528371,0.0001612,2]
[403116374,1769173843661,-191.06,0.00016219,2]
[403116375,1769173843671,-356.96,0.00016246,2]
[403116376,1769173843680,-1118.35,0.00016316,2]
[403116377,1769173843690,-920.21463568,0.00016317,2]
[403116378,1769173843704,-500.0,0.00016356,2]
[403116379,1769173843714,-221.37,0.00016388,2]
[403116380,1769173843724,-200.0,0.00016414,2]
[403116381,1769173843733,-268.47,0.00016431,2]
[403116382,1769173843743,-300.0,0.00016438,4]
[403116383,1769173843753,-300.0,0.00016438,4]
[403116384,1769173843763,-306.17,0.00016438,4]
[403116385,1769173843772,-150.0,0.00016481,2]
[403116386,1769173843782,-1000.0,0.00016613,2]
[403116387,1769173843791,-300.0,0.00016712,4]
[403116388,1769173843801,-920.21463568,0.00016713,2]
[403116389,1769173843811,-166.66,0.00016935,2]
[403116390,1769173843821,-221.37,0.00017003,2]
[403116391,1769173843830,-156.72528371,0.0001701,2]
[403116392,1769173843840,-538.7434955,0.00017099,2]
[403116393,1769173843849,-322.6107,0.00017099,2]
[403116395,1769173843858,-151.0,0.00017099,2]
[403116396,1769173843867,-151.0,0.00017099,2]
[403116397,1769173843876,-151.0,0.00017099,2]
[403116398,1769173843886,-151.0,0.00017099,2]
[403116399,1769173843895,-151.0,0.00017099,2]
[403116400,1769173843904,-151.0,0.00017099,2]
[403116401,1769173843914,-151.0,0.00017099,2]
[403116402,1769173843923,-151.0,0.00017099,2]
[403116403,1769173843932,-151.0,0.00017099,2]
[403116404,1769173843942,-151.0,0.00017099,2]
[403116405,1769173843952,-151.0,0.00017099,2]
[403116406,1769173843965,-920.21463568,0.00017109,2]
[403116407,1769173843976,-158.65816026,0.00017176,2]
[403116408,1769173843985,-900.0,0.000172,6]
[403116409,1769173843996,-1000.0,0.0001726,2]
[403116410,1769173844006,-1400.0,0.000173,6]
[403116411,1769173844016,-1900.0,0.000174,6]
[403116412,1769173844027,-200.0,0.00017437,2]
[403116413,1769173844036,-1001.0,0.00017472,2]
[403116414,1769173844046,-166.66,0.00017494,2]
[403116415,1769173844056,-2400.0,0.000175,6]
[403116416,1769173844066,-920.21463568,0.00017504,2]
[403116417,1769173844075,-1001.0,0.00017524,2]
[403116418,1769173844088,-1001.0,0.00017536,2]
[403116419,1769173844098,-400.0,0.000176,6]
[403116420,1769173844108,-221.37,0.00017617,2]
[403116421,1769173844117,-615.0,0.00017644,2]
[403116422,1769173844127,-210.0,0.00017644,2]
[403116423,1769173844136,-1269.0,0.00017644,2]
[403116424,1769173844145,-916.0,0.00017644,2]
[403116425,1769173844155,-2441.0,0.00017644,2]
[403116426,1769173844163,-4829.0,0.00017644,2]
[403116427,1769173844173,-6564.0,0.00017644,2]
[403116428,1769173844182,-1001.0,0.00017659,2]
[403116429,1769173844191,-500.0,0.00017699,2]
[403116430,1769173844201,-150.0,0.00017699,2]
[403116431,1769173844210,-200.0,0.00017699,2]
[403116432,1769173844220,-150.0,0.00017699,2]
[403116433,1769173844229,-150.0,0.00017699,2]
[403116434,1769173844238,-150.0,0.00017699,2]
[403116435,1769173844247,-150.0,0.00017699,2]
[403116436,1769173844257,-400.0,0.000177,6]
[403116437,1769173844266,-1000.0,0.000177,2]
[403116438,1769173844275,-2596.5,0.00017702,2]
[403116439,1769173844285,-1001.0,0.00017752,2]
[403116440,1769173844294,-500.0,0.00017754,2]
[403116441,1769173844304,-150.0,0.00017754,2]
[403116442,1769173844314,-150.0,0.00017754,2]
[403116443,1769173844335,-252.25809292,0.00017754,2]
[403116444,1769173844348,-150.0,0.00017754,2]
[403116445,1769173844362,-200.0,0.00017754,2]
[403116446,1769173844375,-1001.0,0.00017755,2]
[403116447,1769173844388,-5663.0,0.00017792,2]
[403116448,1769173844399,-400.0,0.000178,6]
[403116449,1769173844410,-500.0,0.00017809,2]
[403116450,1769173844423,-150.0,0.00017809,2]
[403116451,1769173844436,-150.0,0.00017809,2]
[403116452,1769173844447,-150.0,0.00017809,2]
[403116453,1769173844463,-337.63872,0.0001782,2]
[403116454,1769173844475,-337.63872,0.0001782,2]
[403116455,1769173844488,-873.22454,0.0001782,2]
[403116456,1769173844500,-5663.0,0.00017833,2]
[403116457,1769173844513,-356.93,0.00017833,2]
[403116458,1769173844524,-3187.0875975,0.00017844,2]
[403116459,1769173844536,-151.0,0.00017848,2]
[403116460,1769173844547,-1001.0,0.00017851,2]
[403116461,1769173844557,-352.18132015,0.00017863,2]
[403116462,1769173844567,-150.0,0.00017863,2]
[403116463,1769173844580,-150.0,0.00017863,2]
[403116464,1769173844593,-150.0,0.00017863,2]
[403116465,1769173844605,-500.0,0.00017873,2]
[403116466,1769173844617,-500.0,0.00017873,2]
[403116467,1769173844629,-500.0,0.00017873,2]
[403116468,1769173844644,-225.59175686,0.00017873,2]
[403116469,1769173844657,-500.0,0.00017873,2]
[403116470,1769173844669,-920.21463568,0.000179,2]
[403116471,1769173844681,-400.0,0.000179,6]
[403116472,1769173844692,-156.72528371,0.000179,2]
[403116473,1769173844704,-150.0,0.00017918,2]
[403116474,1769173844718,-150.0,0.00017918,2]
[403116475,1769173844729,-150.0,0.00017918,2]
[403116476,1769173844742,-873.22454,0.0001792,2]
[403116477,1769173844755,-200.0,0.00017926,2]
[403116478,1769173844769,-1000.0,0.00017934,2]
[403116479,1769173844782,-1000.0,0.00017934,2]
[403116480,1769173844794,-1000.0,0.00017934,2]
[403116481,1769173844809,-1000.0,0.00017934,2]
[403116482,1769173844821,-1000.0,0.00017934,2]
[403116483,1769173844841,-1000.0,0.00017934,2]
[403116484,1769173844857,-1000.0,0.00017934,2]
[403116485,1769173844870,-1000.0,0.00017934,2]
[403116486,1769173844883,-151.0,0.00017945,2]
[403116487,1769173844897,-200.0,0.00017945,2]
[403116488,1769173844910,-268.90742628,0.00017945,2]
[403116489,1769173844922,-151.0,0.00017945,2]
[403116490,1769173844933,-242.67561249,0.00017973,2]
[403116491,1769173844946,-250.0,0.00017973,2]
[403116492,1769173844961,-250.0,0.00017973,2]
[403116493,1769173844975,-500.0,0.00017973,2]
[403116494,1769173844988,-150.0,0.00017973,2]
[403116495,1769173845001,-502.11,0.0001798,2]
[403116496,1769173845012,-151.0,0.00017997,2]
[403116497,1769173845024,-2008.0,0.00017998,2]
[403116498,1769173845034,-5145.473103,0.00017998,2]
[403116499,1769173845045,-50895.3025264,0.00017998,2]
[403116500,1769173845056,-487.0,0.00017998,2]
[403116501,1769173845073,-487.0,0.00017998,2]
[403116502,1769173845088,-487.0,0.00017998,2]
[403116503,1769173845099,-487.0,0.00017998,2]
[403116504,1769173845110,-487.0,0.00017998,2]
[403116505,1769173845120,-487.0,0.00017998,2]
[403116506,1769173845132,-487.0,0.00017998,2]
[403116507,1769173845142,-487.0,0.00017998,2]
[403116508,1769173845153,-487.0,0.00017998,2]
[403116509,1769173845164,-487.0,0.00017998,2]
[403116510,1769173845176,-487.0,0.00017998,2]
[403116511,1769173845187,-487.0,0.00017998,2]
[403116512,1769173845198,-487.0,0.00017998,2]
[403116513,1769173845211,-832.76,0.00017998,2]
[403116514,1769173845238,-300.0,0.00017999,2]
[403116515,1769173845250,-666.0,0.00017999,2]
[403116516,1769173845262,-228847.97190206,0.00018,2]
[403116517,1769173845279,-895.70058435,0.00018,2]
[403116519,1769173846208,-567.0,0.00017644,2]
[403116520,1769173846220,-253.00504588,0.00017755,2]
[403116521,1769173846232,-151.0,0.0001792,2]
[403116522,1769173846243,-4557.11059367,0.00018,2]
[403116523,1769173846265,-7147.12,0.00018,2]
[403116524,1769173846279,-11177.99915104,0.00018,2]
[403116534,1769173892800,10000.01,0.00014339,2]
[403116535,1769173892826,10000.01,0.00014339,2]
[403116536,1769173892852,10000.01,0.00014339,2]
[403116537,1769173892878,10000.01,0.00014339,2]
[403116538,1769173892904,10000.01,0.00014339,2]
[403116539,1769173892930,10000.01,0.00014339,2]
[403116540,1769173892960,10000.01,0.00014339,2]
[403116541,1769173892990,10000.01,0.00014339,2]
[403116542,1769173893018,10000.01,0.00014339,2]
[403116543,1769173893047,10000.01,0.00014339,2]
[403116551,1769173922104,150.0,0.00014338,2]
[403116552,1769173922908,300.0,0.00014338,2]
[403116577,1769173981438,300.0,0.00014338,2]
[403116578,1769174000821,1154.0,0.00014338,2]
[403116579,1769174041610,300.0,0.00014338,2]
[403116580,1769174101254,1200.0,0.00014338,2]
[403116582,1769174101337,300.0,0.00014338,2]
[403116583,1769174101375,300.0,0.00014338,2]
[403116587,1769174103250,5160.0,0.000226,120]
[403116588,1769174106620,250.64594963,0.00014338,2]
[403116595,1769174139610,424.08320654,0.00014338,2]
[403116608,1769174161294,287.0,0.00014338,2]
[403116610,1769174172768,209.24421639,0.00014338,2]
[403116628,1769174226153,200.0,0.00014339,2]
[403116629,1769174232901,200.0,0.00014339,2]
[403116630,1769174233575,500.0,0.00014339,2]
[403116631,1769174233914,500.0,0.00014339,2]
[403116632,1769174234495,500.0,0.00014339,2]
[403116633,1769174235113,500.0,0.00014339,2]
[403116634,1769174235774,500.0,0.00014339,2]
[403116635,1769174236375,500.0,0.00014339,2]
[403116636,1769174236973,500.0,0.00014339,2]
[403116637,1769174237568,500.0,0.00014339,2]
[403116638,1769174238436,425.03662744,0.00014339,2]
[403116639,1769174238471,204.44571857,0.00014339,2]
[403116640,1769174241216,500.0,0.00014339,2]
[403116641,1769174241724,500.0,0.00014339,2]
[403116642,1769174242021,151.0,0.00014339,2]
[403116643,1769174242371,500.0,0.00014339,2]
[403116644,1769174242666,151.0,0.00014339,2]
[403116645,1769174243019,500.0,0.00014339,2]
[403116646,1769174243335,151.0,0.00014339,2]
[403116647,1769174243933,500.0,0.00014339,2]
[403116648,1769174244392,500.0,0.00014339,2]
[403116649,1769174244995,500.0,0.00014339,2]
[403116650,1769174245378,151.0,0.00014339,2]
[403116651,1769174245618,500.0,0.00014339,2]
[403116652,1769174246030,151.0,0.00014339,2]
[403116653,1769174246229,500.0,0.00014339,2]
[403116654,1769174246670,151.0,0.00014339,2]
[403116655,1769174247342,151.0,0.00014339,2]
[403116656,1769174247950,151.0,0.00014339,2]
[403116657,1769174248604,151.0,0.00014339,2]
[403116658,1769174249232,236.12975493,0.00014339,2]
[403116659,1769174253419,500.0,0.00014338,2]
[403116660,1769174253474,500.0,0.00014338,2]
[403116661,1769174253523,163.92830105,0.00014338,2]
[403116662,1769174253562,557.59007768,0.00014338,2]
[403116663,1769174253605,500.0,0.00014338,2]
[403116664,1769174253651,500.0,0.00014338,2]
[403116665,1769174253703,500.0,0.00014338,2]
[403116666,1769174253756,478.91614777,0.00014338,2]
[403116667,1769174253784,21.08385223,0.00014338,2]
[403116668,1769174253845,500.0,0.00014338,2]
[403116669,1769174263880,-7517.14142663,0.00014339,2]
[403116670,1769174264062,-10000.01,0.00014339,2]
[403116671,1769174264775,-10000.01,0.00014339,2]
[403116672,1769174264809,-10000.01,0.00014339,2]
[403116673,1769174264845,-10000.01,0.00014339,2]
[403116674,1769174264876,-10000.01,0.00014339,2]
[403116675,1769174266612,-10000.01,0.00014339,2]
[403116676,1769174266802,-10000.01,0.00014339,2]
[403116677,1769174267000,-10000.01,0.00014339,2]
[403116678,1769174267219,-10000.01,0.00014339,2]
[403116679,1769174282599,150.0,0.00014338,2]
[403116819,1769174341315,300.0,0.00014338,2]
[403117227,1769174359395,2500.0,0.00014239,2]
[403117562,1769174401217,1200.0,0.00014338,2]
[403117564,1769174401255,300.0,0.00014338,2]
[403117613,1769174410990,5336.85,0.00014329,2]
[403117614,1769174411050,213.16,0.00014329,2]
[403117615,1769174411074,5123.69,0.00014329,2]
[403117631,1769174419727,1334.21,0.00014329,2]
[403117633,1769174419973,1334.21,0.00014329,2]
[403117639,1769174426731,500.0,0.00014338,2]
[403117640,1769174427037,500.0,0.00014338,2]
[403117641,1769174427349,500.0,0.00014338,2]
[403117642,1769174427646,500.0,0.00014338,2]
[403117643,1769174427998,207.9,0.00014338,2]
[403117644,1769174428026,56.02830105,0.00014338,2]
[403117732,1769174438147,1101.0,0.0001393,2]
[403117733,1769174454976,500.0,0.00014338,2]
[403117734,1769174455027,500.0,0.00014338,2]
[403117735,1769174455077,500.0,0.00014338,2]
[403117736,1769174455132,500.0,0.00014338,2]
[403117737,1769174455190,500.0,0.00014338,2]
[403117738,1769174455482,161.81117395,0.00014338,2]
[403117739,1769174462140,150.0,0.00014338,2]
[403117742,1769174492735,1332.1,0.00014052,2]
[403117743,1769174492776,165.249,0.00014052,2]
[403117744,1769174493126,200.0,0.000139,5]
[403117748,1769174500915,3606.0951,0.00014239,2]
[403117750,1769174528836,927.726425,0.00014339,2]
[403117751,1769174528862,9072.273575,0.00014339,2]
[403117753,1769174529723,927.736425,0.00014329,2]
[403117754,1769174529746,7452.28566196,0.00014329,2]
[403117759,1769174538197,2547.72433804,0.00014339,2]
[403117760,1769174538225,7452.27566196,0.00014339,2]
[403117761,1769174545616,2547.73433804,0.00014339,2]
[403117762,1769174545639,7452.26566196,0.00014339,2]
[403117765,1769174555564,-2593.97169895,0.00014339,2]
[403117766,1769174555647,2547.74433804,0.00014339,2]
[403117767,1769174555672,2859.25566196,0.00014339,2]
[403117768,1769174555767,-4593.01,0.00014339,2]
[403117769,1769174555952,-10000.01,0.00014339,2]
[403117770,1769174560088,-10000.01,0.00014339,2]
[403117771,1769174560296,-10000.01,0.00014339,2]
[403117772,1769174560522,-10000.01,0.00014339,2]
[403117773,1769174560714,-10000.01,0.00014339,2]
[403117774,1769174560903,-10000.01,0.00014339,2]
[403117775,1769174561061,-10000.01,0.00014339,2]
[403117776,1769174561321,-152.68254416,0.00014239,2]
[403117777,1769174561331,-9847.32745584,0.00014339,2]
[403117778,1769174561438,-10000.01,0.00014339,2]
[403117782,1769174573022,-1569.4315,0.00014239,2]
[403117785,1769174586791,500.0,0.00014239,2]
[403117787,1769174589899,876.55478932,0.00014239,2]
[403117793,1769174633238,407.10288168,0.00014239,2]
[403117796,1769174642026,150.0,0.00014338,2]
[403117797,1769174642539,300.0,0.00014338,2]
[403117799,1769174644467,1000.0,0.00014239,2]
[403117801,1769174663308,819.6005,0.00014239,2]
[403117803,1769174668873,2500.0,0.00014239,2]
[403117807,1769174701221,307.888829,0.00014338,2]
[403117808,1769174701251,761.111171,0.00014338,2]
[403117809,1769174701304,300.0,0.00014338,2]
[403117811,1769174710127,587.60488278,0.00014239,2]
[403117812,1769174725559,1028.31734589,0.000108,2]
[403117813,1769174736352,500.0,0.00014239,2]
[403117814,1769174742248,2693.5577,0.00014239,2]
[403117817,1769174759689,3498.49212319,8e-05,2]
[403117819,1769174822364,150.0,0.00014338,2]
[403117820,1769174832649,480.92677714,0.0001305,2]
[403117821,1769174832673,3343.49982697,0.0001305,2]
[403117822,1769174868777,476.10981014,0.00014,2]
[403117823,1769174891895,6180.40036289,0.00014239,2]
[403117824,1769174891923,3819.60963711,0.00014239,2]
[403117826,1769174909281,500.0,0.00014338,2]
[403117827,1769174909472,500.0,0.00014338,2]
[403117828,1769174913916,5180.40036289,0.00014239,2]
[403117829,1769174913945,10000.01,0.00014239,2]
[403117830,1769174913974,10000.01,0.00014239,2]
[403117831,1769174914003,10000.01,0.00014239,2]
[403117832,1769174914032,10000.01,0.00014239,2]
[403117833,1769174914059,10000.01,0.00014239,2]
[403117834,1769174914091,10000.01,0.00014239,2]
[403117835,1769174914119,10000.01,0.00014239,2]
[403117836,1769174914147,10000.01,0.00014239,2]
[403117837,1769174914175,10000.01,0.00014239,2]
[403117843,1769174961128,-5325.801866,0.00014239,2]
[403117846,1769174976551,1424.35175121,0.00014139,2]
[403117847,1769174980118,830.68368122,0.00014226,2]
[403117852,1769175002145,150.0,0.00014238,2]
[403117867,1769175031298,-22315.03913726,0.00014239,2]
[403117870,1769175031463,-877178.66863385,0.00014239,2]
[403117871,1769175031473,-1000.0,0.00014239,2]
[403117872,1769175031482,-356.21502147,0.00014239,2]
[403117873,1769175031492,-268.0,0.00014239,2]
[403117874,1769175031501,-378.13542222,0.00014338,2]
[403117875,1769175031511,-500.0,0.00014338,2]
[403117876,1769175031520,-219.97332663,0.00014338,2]
[403117877,1769175031530,-500.0,0.00014338,2]
[403117878,1769175031539,-500.0,0.00014338,2]
[403117879,1769175031548,-500.0,0.00014338,2]
[403117880,1769175031558,-500.0,0.00014338,2]
[403117881,1769175031567,-498.36913615,0.00014338,2]
[403117883,1769175031576,-500.0,0.00014338,2]
[403117884,1769175031586,-500.0,0.00014338,2]
[403117885,1769175031595,-500.0,0.00014338,2]
[403117886,1769175031603,-500.0,0.00014338,2]
[403117887,1769175031613,-500.0,0.00014338,2]
[403117888,1769175031622,-500.0,0.00014338,2]
[403117889,1769175031631,-500.0,0.00014338,2]
[403117890,1769175031640,-500.0,0.00014338,2]
[403117891,1769175031649,-500.0,0.00014338,2]
[403117892,1769175031658,-500.0,0.00014338,2]
[403117893,1769175031667,-261.3281049,0.00014338,2]
[403117894,1769175031676,-500.0,0.00014338,2]
[403117895,1769175031685,-500.0,0.00014338,2]
[403117896,1769175031694,-996.44781802,0.00014339,2]
[403117897,1769175031704,-1101.0,0.00014408,2]
[403117898,1769175031713,-1424.3517512,0.00014557,2]
[403117899,1769175031722,-356.21502145,0.00014762,2]
[403117900,1769175031735,-1424.3517512,0.00014975,2]
[403117901,1769175031745,-1101.0,0.00015167,2]
[403117902,1769175031754,-356.21502145,0.00015285,2]
[403117903,1769175031764,-255.0,0.00015362,2]
[403117904,1769175031774,-1424.3517512,0.00015393,2]
[403117905,1769175031784,-151.0,0.00015756,2]
[403117906,1769175031793,-2500.0,0.00015772,2]
[403117907,1769175031803,-356.21502145,0.00015808,2]
[403117908,1769175031814,-1424.3517512,0.00015811,2]
[403117909,1769175031825,-1101.0,0.00015965,2]
[403117910,1769175031835,-6405.29737578,0.00016,4]
[403117911,1769175031844,-9999.99,0.00016116,2]
[403117912,1769175031853,-150.99,0.00016116,2]
[403117913,1769175031863,-305.96,0.00016199,2]
[403117914,1769175031871,-1424.3517512,0.00016228,2]
[403117915,1769175031880,-405.6,0.00016251,2]
[403117916,1769175031889,-356.21502145,0.00016331,2]
[403117917,1769175031898,-500.0,0.00016356,2]
[403117918,1769175031907,-305.60310685,0.00016376,2]
[403117919,1769175031916,-758.48,0.00016408,2]
[403117920,1769175031925,-165.49,0.00016485,2]
[403117921,1769175031934,-285.0,0.00016573,2]
[403117922,1769175031943,-1424.3517512,0.00016646,2]
[403117923,1769175031952,-1000.0,0.00016712,2]
[403117924,1769175031961,-1101.0,0.00016763,2]
[403117925,1769175031969,-200.0,0.00016792,2]
[403117926,1769175031978,-356.21502145,0.00016854,2]
[403117927,1769175031987,-156.65,0.00016881,2]
[403117928,1769175031996,-600.0,0.000169,6]
[403117929,1769175032004,-1999.0,0.00016986,2]
[403117930,1769175032013,-1966.72,0.00017026,2]
[403117931,1769175032022,-173.0,0.0001704,2]
[403117932,1769175032033,-405.6,0.00017063,2]
[403117933,1769175032042,-1424.3517512,0.00017064,2]
[403117934,1769175032051,-322.6107,0.00017099,2]
[403117935,1769175032060,-151.0,0.00017099,2]
[403117936,1769175032069,-151.0,0.00017099,2]
[403117937,1769175032078,-151.0,0.00017099,2]
[403117938,1769175032087,-151.0,0.00017099,2]
[403117939,1769175032096,-151.0,0.00017099,2]
[403117940,1769175032105,-151.0,0.00017099,2]
[403117941,1769175032114,-151.0,0.00017099,2]
[403117942,1769175032122,-151.0,0.00017099,2]
[403117943,1769175032131,-151.0,0.00017099,2]
[403117944,1769175032140,-151.0,0.00017099,2]
[403117945,1769175032150,-151.0,0.00017099,2]
[403117946,1769175032159,-1300.0,0.000171,6]
[403117947,1769175032168,-157.44557042,0.00017183,2]
[403117948,1769175032177,-1900.0,0.000172,6]
[403117949,1769175032187,-200.0,0.00017225,2]